fUSD/lending_fUSD_20240329
["ID","MTS","AMOUNT","RATE_DAILY","PERIOD"]
[320946251,1711720282687,-511.45280962,0.00051506,120]
[320946252,1711720282697,-150.0,0.00051506,120]
[320946253,1711720282707,-500.0,0.00051506,120]
[320946254,1711720282717,-867.0,0.00051506,120]
[320946255,1711720282727,-500.0,0.00051506,120]
[320946256,1711720282737,-500.0,0.00051506,120]
[320946257,1711720282747,-500.0,0.00051506,120]
[320946258,1711720282756,-500.0,0.00051506,120]
[320946259,1711720282767,-627.18,0.00051506,120]
[320946260,1711720282776,-500.0,0.00051506,120]
[320946261,1711720282786,-714.94,0.00051506,120]
[320946262,1711720282795,-500.0,0.00051506,120]
[320946263,1711720282805,-538.01,0.00051506,120]
[320946264,1711720282814,-1007.7,0.00051506,120]
[320946265,1711720282824,-686.37,0.00051506,120]
[320946266,1711720282834,-500.0,0.00051506,120]
[320946267,1711720282844,-982.95,0.00051506,120]
[320946268,1711720282854,-500.0,0.00051506,120]
[320946269,1711720282863,-500.0,0.00051506,120]
[320946270,1711720282873,-500.0,0.00051506,120]
[320946271,1711720282883,-500.0,0.00051506,120]
[320946272,1711720282892,-774.88,0.00051506,120]
[320946273,1711720282901,-500.0,0.00051506,120]
[320946274,1711720282912,-500.0,0.00051506,120]
[320946275,1711720282921,-679.79,0.00051506,120]
[320946276,1711720282931,-500.0,0.00051506,120]
[320946277,1711720282941,-500.0,0.00051506,120]
[320946278,1711720282951,-500.0,0.00051506,120]
[320946279,1711720282960,-500.0,0.00051506,120]
[320946280,1711720282970,-853.69,0.00051506,120]
[320946281,1711720282979,-500.0,0.00051506,120]
[320946282,1711720282988,-500.0,0.00051506,120]
[320946283,1711720282998,-896.8,0.00051506,120]
[320946284,1711720283008,-786.23,0.00051506,120]
[320946285,1711720283017,-522.53,0.00051506,120]
[320946286,1711720283027,-500.0,0.00051506,120]
[320946287,1711720283037,-500.0,0.00051506,120]
[320946288,1711720283047,-594.23,0.00051506,120]
[320946289,1711720283056,-9880.52,0.00051506,120]
[320946290,1711720283066,-1749.42,0.00051506,120]
[320946291,1711720283075,-500.0,0.00051506,120]
[320946292,1711720283085,-500.0,0.00051506,120]
[320946293,1711720283094,-573.33,0.00051506,120]
[320946294,1711720283103,-500.0,0.00051506,120]
[320946295,1711720283114,-512.31,0.00051506,120]
[320946296,1711720283123,-500.0,0.00051506,120]
[320946297,1711720283133,-500.0,0.00051506,120]
[320946298,1711720283142,-500.0,0.00051506,120]
[320946299,1711720283152,-500.0,0.00051506,120]
[320946300,1711720283163,-500.0,0.00051506,120]
[320946301,1711720283173,-545.68,0.00051506,120]
[320946302,1711720283182,-500.0,0.00051506,120]
[320946303,1711720283192,-500.0,0.00051506,120]
[320946304,1711720283203,-500.0,0.00051506,120]
[320946305,1711720283213,-500.0,0.00051506,80]
[320946306,1711720283223,-1990.61,0.00051506,120]
[320946307,1711720283234,-500.0,0.00051506,120]
[320946308,1711720283244,-500.0,0.00051506,120]
[320946309,1711720283254,-500.0,0.00051506,120]
[320946310,1711720283264,-1229.22,0.00051506,120]
[320946311,1711720283273,-817.16,0.00051506,120]
[320946312,1711720283283,-500.0,0.00051506,120]
[320946313,1711720283293,-500.0,0.00051506,120]
[320946314,1711720283302,-500.0,0.00051506,120]
[320946315,1711720283311,-500.0,0.00051506,120]
[320946316,1711720283321,-553.19,0.00051506,120]
[320946317,1711720283331,-770.3,0.00051506,120]
[320946318,1711720283340,-4469.38,0.00051506,120]
[320946319,1711720283350,-500.0,0.00051506,120]
[320946320,1711720283359,-679.26,0.00051506,120]
[320946321,1711720283369,-713.39,0.00051506,120]
[320946322,1711720283380,-885.4,0.00051506,120]
[320946323,1711720283392,-500.0,0.00051506,120]
[320946324,1711720283402,-500.0,0.00051506,120]
[320946325,1711720283413,-1238.51,0.00051506,120]
[320946326,1711720283423,-500.0,0.00051506,120]
[320946327,1711720283432,-1635.01,0.00051506,120]
[320946328,1711720283442,-576.18,0.00051506,120]
[320946329,1711720283452,-500.0,0.00051506,60]
[320946330,1711720283462,-855.16,0.00051506,120]
[320946331,1711720283472,-500.0,0.00051506,120]
[320946332,1711720283481,-531.08,0.00051506,120]
[320946333,1711720283491,-500.0,0.00051506,120]
[320946334,1711720283500,-500.0,0.00051506,120]
[320946335,1711720283509,-500.0,0.00051506,120]
[320946336,1711720283519,-534.13,0.00051506,120]
[320946337,1711720283528,-500.0,0.00051506,120]
[320946338,1711720283538,-523.64,0.00051506,120]
[320946339,1711720283547,-6532.1,0.00051506,120]
[320946340,1711720283556,-560.66,0.00051506,120]
[320946341,1711720283566,-502.42,0.00051506,120]
[320946342,1711720283575,-723.57,0.00051506,120]
[320946343,1711720283585,-1682.83,0.00051506,120]
[320946344,1711720283594,-638.67,0.00051506,120]
[320946345,1711720283603,-503.68,0.00051506,120]
[320946346,1711720283612,-1618.73,0.00051506,120]
[320946347,1711720283622,-3551.69,0.00051506,120]
[320946348,1711720283631,-500.0,0.00051506,120]
[320946349,1711720283640,-500.0,0.00051506,120]
[320946350,1711720283651,-500.0,0.00051506,120]
[320946351,1711720283663,-1902.79,0.00051506,120]
[320946352,1711720283673,-500.0,0.00051506,120]
[320946353,1711720283682,-523.06,0.00051506,120]
[320946354,1711720283691,-500.0,0.00051506,120]
[320946355,1711720283700,-783.41,0.00051506,120]
[320946356,1711720283710,-1110.8,0.00051506,120]
[320946357,1711720283720,-500.0,0.00051506,120]
[320946358,1711720283730,-500.0,0.00051506,120]
[320946359,1711720283740,-516.74,0.00051506,120]
[320946360,1711720283749,-500.0,0.00051506,120]
[320946361,1711720283758,-728.83,0.00051506,21]
[320946362,1711720283768,-500.0,0.00051506,120]
[320946363,1711720283777,-1108.05,0.00051506,120]
[320946364,1711720283787,-500.0,0.00051506,120]
[320946365,1711720283797,-988.84,0.00051506,120]
[320946366,1711720283807,-500.0,0.00051506,120]
[320946367,1711720283816,-627.93,0.00051506,120]
[320946368,1711720283826,-500.0,0.00051506,120]
[320946369,1711720283835,-500.0,0.00051506,120]
[320946370,1711720283845,-743.49,0.00051506,120]
[320946371,1711720283855,-500.0,0.00051506,2]
[320946372,1711720283864,-1845.14,0.00051506,120]
[320946373,1711720283874,-826.94,0.00051506,120]
[320946374,1711720283884,-838.3,0.00051506,120]
[320946375,1711720283894,-679.1,0.00051506,120]
[320946376,1711720283904,-2055.89,0.00051506,120]
[320946377,1711720283920,-617.83,0.00051506,120]
[320946378,1711720283930,-1240.17,0.00051506,120]
[320946379,1711720283940,-500.0,0.00051506,120]
[320946380,1711720283950,-500.0,0.00051506,120]
[320946381,1711720283959,-500.0,0.00051506,120]
[320946382,1711720283969,-500.0,0.00051506,120]
[320946383,1711720283979,-663.18,0.00051506,120]
[320946384,1711720283989,-500.0,0.00051506,120]
[320946385,1711720283999,-500.0,0.00051506,120]
[320946386,1711720284009,-1451.79,0.00051506,120]
[320946387,1711720284018,-317.94535687,0.00051506,120]
[320946388,1711720284027,-333.10676659,0.00051506,120]
[320946389,1711720284037,-500.0,0.00051506,120]
[320946390,1711720284047,-500.0,0.00051506,120]
[320946391,1711720284057,-500.0,0.00051506,2]
[320946392,1711720284067,-500.0,0.00051506,120]
[320946393,1711720284077,-500.0,0.00051506,120]
[320946394,1711720284086,-697.14,0.00051506,120]
[320946395,1711720284096,-1038.95,0.00051506,120]
[320946396,1711720284105,-500.0,0.00051506,120]
[320946397,1711720284115,-383.6,0.00051544,2]
[320946398,1711720284125,-230.4,0.00051616,120]
[320946399,1711720284134,-229.06135444,0.00051669,120]
[320946400,1711720284144,-500.0,0.00051669,120]
[320946401,1711720284154,-500.0,0.00051669,120]
[320946402,1711720284168,-500.0,0.00051669,120]
[320946403,1711720284177,-451.79573513,0.00051669,120]
[320946404,1711720284187,-1137.41,0.00051669,120]
[320946405,1711720284198,-500.0,0.00051669,120]
[320946406,1711720284207,-500.0,0.00051669,120]
[320946407,1711720284216,-500.0,0.00051669,120]
[320946408,1711720284227,-500.0,0.00051669,120]
[320946409,1711720284237,-500.0,0.00051669,120]
[320946410,1711720284247,-582.72788107,0.00051669,120]
[320946411,1711720284256,-500.0,0.00051669,120]
[320946412,1711720284267,-500.0,0.00051669,120]
[320946413,1711720284276,-500.0,0.00051669,120]
[320946414,1711720284286,-595.94434315,0.00051669,120]
[320946415,1711720284295,-500.0,0.00051669,120]
[320946416,1711720284304,-526.08517148,0.00051669,120]
[320946417,1711720284314,-500.0,0.00051669,120]
[320946418,1711720284324,-500.0,0.00051669,120]
[320946419,1711720284333,-500.0,0.00051669,120]
[320946420,1711720284342,-500.0,0.00051669,120]
[320946421,1711720284352,-500.0,0.00051669,120]
[320946422,1711720284361,-500.0,0.00051669,120]
[320946423,1711720284370,-406.20347156,0.00051669,120]
[320946424,1711720284382,-386.06221529,0.00051669,120]
[320946425,1711720284392,-500.0,0.00051669,120]
[320946426,1711720284401,-538.83374117,0.00051669,120]
[320946427,1711720284412,-413.78847038,0.00051669,120]
[320946428,1711720284423,-500.0,0.00051669,120]
[320946429,1711720284432,-500.0,0.00051669,120]
[320946430,1711720284441,-500.0,0.00051669,120]
[320946431,1711720284450,-500.0,0.00051669,120]
[320946432,1711720284461,-500.0,0.00051669,120]
[320946433,1711720284470,-500.0,0.00051669,120]
[320946434,1711720284480,-500.0,0.00051669,120]
[320946435,1711720284490,-500.0,0.00051669,120]
[320946436,1711720284500,-500.0,0.00051669,120]
[320946437,1711720284511,-500.0,0.00051669,120]
[320946438,1711720284520,-500.0,0.00051669,2]
[320946439,1711720284529,-500.0,0.00051678,120]
[320946440,1711720284539,-500.0,0.00051678,120]
[320946441,1711720284548,-500.0,0.00051678,120]
[320946442,1711720284558,-500.0,0.00051678,120]
[320946443,1711720284568,-508.99,0.00051678,120]
[320946444,1711720284577,-500.0,0.00051678,120]
[320946445,1711720284588,-500.0,0.00051678,120]
[320946446,1711720284597,-500.0,0.00051678,120]
[320946447,1711720284606,-500.0,0.0005178,120]
[320946448,1711720284616,-512.89295352,0.0005178,120]
[320946449,1711720284625,-500.0,0.0005178,120]
[320946450,1711720284635,-500.0,0.0005178,120]
[320946451,1711720284644,-500.0,0.0005178,120]
[320946452,1711720284654,-500.0,0.0005178,120]
[320946453,1711720284665,-500.0,0.0005178,120]
[320946454,1711720284673,-500.0,0.0005178,120]
[320946455,1711720284682,-500.0,0.0005178,120]
[320946456,1711720284692,-500.0,0.0005178,120]
[320946457,1711720284701,-500.0,0.0005178,120]
[320946458,1711720284710,-500.0,0.0005178,120]
[320946459,1711720284720,-500.0,0.0005178,120]
[320946460,1711720284729,-500.0,0.0005178,120]
[320946461,1711720284739,-500.0,0.0005178,120]
[320946462,1711720284749,-500.0,0.0005178,120]
[320946463,1711720284759,-500.0,0.0005178,120]
[320946464,1711720284768,-500.0,0.0005178,120]
[320946465,1711720284778,-150.0,0.0005178,120]
[320946466,1711720284788,-500.0,0.0005178,120]
[320946467,1711720284798,-867.0,0.0005178,120]
[320946468,1711720284935,-500.0,0.0005178,120]
[320946469,1711720284946,-500.0,0.0005178,120]
[320946470,1711720284956,-500.0,0.0005178,120]
[320946471,1711720284966,-500.0,0.0005178,120]
[320946472,1711720284977,-627.18,0.0005178,120]
[320946473,1711720284987,-500.0,0.0005178,120]
[320946474,1711720284996,-714.94,0.0005178,120]
[320946475,1711720285006,-500.0,0.0005178,120]
[320946476,1711720285016,-538.01,0.0005178,120]
[320946477,1711720285027,-1007.7,0.0005178,120]
[320946478,1711720285036,-686.37,0.0005178,120]
[320946479,1711720285046,-500.0,0.0005178,120]
[320946480,1711720285056,-982.95,0.0005178,120]
[320946481,1711720285066,-500.0,0.0005178,120]
[320946482,1711720285076,-500.0,0.0005178,120]
[320946483,1711720285086,-500.0,0.0005178,120]
[320946484,1711720285096,-500.0,0.0005178,120]
[320946485,1711720285106,-774.88,0.0005178,120]
[320946486,1711720285115,-500.0,0.0005178,120]
[320946487,1711720285125,-500.0,0.0005178,120]
[320946488,1711720285135,-679.79,0.0005178,120]
[320946489,1711720285145,-500.0,0.0005178,120]
[320946490,1711720285156,-500.0,0.0005178,120]
[320946491,1711720285167,-500.0,0.0005178,120]
[320946492,1711720285177,-500.0,0.0005178,120]
[320946493,1711720285187,-853.69,0.0005178,120]
[320946494,1711720285196,-500.0,0.0005178,120]
[320946495,1711720285206,-500.0,0.0005178,120]
[320946496,1711720285215,-896.8,0.0005178,120]
[320946497,1711720285225,-786.23,0.0005178,120]
[320946498,1711720285234,-522.53,0.0005178,120]
[320946499,1711720285244,-500.0,0.0005178,120]
[320946500,1711720285253,-500.0,0.0005178,120]
[320946501,1711720285263,-594.23,0.0005178,120]
[320946502,1711720285273,-9880.52,0.0005178,120]
[320946503,1711720285283,-1749.42,0.0005178,120]
[320946504,1711720285293,-500.0,0.0005178,120]
[320946505,1711720285303,-500.0,0.0005178,120]
[320946506,1711720285312,-573.33,0.0005178,120]
[320946507,1711720285322,-500.0,0.0005178,120]
[320946508,1711720285332,-512.31,0.0005178,120]
[320946509,1711720285341,-500.0,0.0005178,120]
[320946510,1711720285350,-500.0,0.0005178,120]
[320946511,1711720285360,-500.0,0.0005178,120]
[320946512,1711720285369,-500.0,0.0005178,120]
[320946513,1711720285379,-500.0,0.0005178,120]
[320946515,1711720285389,-545.68,0.0005178,120]
[320946516,1711720285399,-500.0,0.0005178,120]
[320946517,1711720285408,-643.96,0.0005178,120]
[320946518,1711720285421,-500.0,0.0005178,120]
[320946519,1711720285430,-500.0,0.0005178,80]
[320946520,1711720285439,-1990.61,0.0005178,120]
[320946521,1711720285449,-500.0,0.0005178,120]
[320946522,1711720285459,-500.0,0.0005178,120]
[320946523,1711720285468,-500.0,0.0005178,120]
[320946524,1711720285477,-1229.22,0.0005178,120]
[320946525,1711720285487,-817.16,0.0005178,120]
[320946526,1711720285498,-500.0,0.0005178,120]
[320946527,1711720285508,-500.0,0.0005178,120]
[320946528,1711720285517,-500.0,0.0005178,120]
[320946529,1711720285527,-500.0,0.0005178,120]
[320946530,1711720285537,-553.19,0.0005178,120]
[320946531,1711720285546,-770.3,0.0005178,120]
[320946532,1711720285556,-4469.38,0.0005178,120]
[320946533,1711720285565,-500.0,0.0005178,120]
[320946534,1711720285575,-679.26,0.0005178,120]
[320946535,1711720285584,-713.39,0.0005178,120]
[320946536,1711720285594,-885.4,0.0005178,120]
[320946537,1711720285603,-500.0,0.0005178,120]
[320946538,1711720285612,-500.0,0.0005178,120]
[320946539,1711720285622,-1238.51,0.0005178,120]
[320946540,1711720285631,-500.0,0.0005178,120]
[320946541,1711720285640,-1635.01,0.0005178,120]
[320946542,1711720285650,-576.18,0.0005178,120]
[320946543,1711720285659,-399.01549056,0.0005178,60]
[320946544,1711720285670,-855.16,0.0005178,120]
[320946545,1711720285681,-500.0,0.0005178,120]
[320946546,1711720285690,-531.08,0.0005178,120]
[320946547,1711720285699,-500.0,0.0005178,120]
[320946548,1711720285709,-500.0,0.0005178,120]
[320946549,1711720285718,-500.0,0.0005178,120]
[320946550,1711720285727,-534.13,0.0005178,120]
[320946551,1711720285737,-500.0,0.0005178,120]
[320946552,1711720285748,-6532.1,0.0005178,120]
[320946553,1711720285758,-523.64,0.0005178,120]
[320946554,1711720285767,-560.66,0.0005178,120]
[320946555,1711720285777,-502.42,0.0005178,120]
[320946556,1711720285786,-723.57,0.0005178,120]
[320946557,1711720285796,-1682.83,0.0005178,120]
[320946558,1711720285805,-638.67,0.0005178,120]
[320946559,1711720285814,-503.68,0.0005178,120]
[320946560,1711720285823,-1618.73,0.0005178,120]
[320946561,1711720285834,-3551.69,0.0005178,120]
[320946562,1711720285842,-500.0,0.0005178,120]
[320946563,1711720285851,-1046.84,0.0005178,72]
[320946564,1711720285862,-188.77299819,0.0005178,120]
[320946565,1711720285871,-500.0,0.0005178,120]
[320946566,1711720285880,-1902.79,0.0005178,120]
[320946567,1711720285890,-500.0,0.0005178,120]
[320946568,1711720285899,-523.06,0.0005178,120]
[320946569,1711720285908,-500.0,0.0005178,120]
[320946570,1711720285919,-783.41,0.0005178,120]
[320946571,1711720285929,-1110.8,0.0005178,120]
[320946572,1711720285939,-500.0,0.0005178,120]
[320946573,1711720285948,-500.0,0.0005178,120]
[320946574,1711720285957,-516.74,0.0005178,120]
[320946575,1711720285967,-500.0,0.0005178,120]
[320946576,1711720285976,-728.83,0.0005178,21]
[320946577,1711720285986,-500.0,0.0005178,120]
[320946578,1711720285996,-1108.05,0.0005178,120]
[320946579,1711720286005,-500.0,0.0005178,120]
[320946580,1711720286015,-988.84,0.0005178,120]
[320946581,1711720286025,-500.0,0.0005178,120]
[320946582,1711720286034,-627.93,0.0005178,120]
[320946583,1711720286044,-500.0,0.0005178,120]
[320946584,1711720286053,-500.0,0.0005178,120]
[320946585,1711720286063,-743.49,0.0005178,120]
[320946586,1711720286072,-500.0,0.0005178,2]
[320946587,1711720286081,-1845.14,0.0005178,120]
[320946588,1711720286092,-826.94,0.0005178,120]
[320946589,1711720286101,-838.3,0.0005178,120]
[320946590,1711720286110,-679.1,0.0005178,120]
[320946591,1711720286120,-2055.89,0.0005178,120]
[320946592,1711720286130,-617.83,0.0005178,120]
[320946593,1711720286139,-1240.17,0.0005178,120]
[320946594,1711720286149,-500.0,0.0005178,120]
[320946595,1711720286158,-500.0,0.0005178,120]
[320946596,1711720286169,-500.0,0.0005178,120]
[320946597,1711720286179,-663.18,0.0005178,120]
[320946598,1711720286188,-500.0,0.0005178,120]
[320946599,1711720286197,-500.0,0.0005178,120]
[320946600,1711720286207,-500.0,0.0005178,120]
[320946601,1711720286217,-1451.79,0.0005178,120]
[320946602,1711720286227,-500.0,0.0005178,120]
[320946603,1711720286236,-500.0,0.0005178,120]
[320946604,1711720286246,-500.0,0.0005178,2]
[320946605,1711720286256,-500.0,0.0005178,120]
[320946606,1711720286265,-500.0,0.0005178,120]
[320946607,1711720286275,-697.14,0.0005178,120]
[320946608,1711720286284,-1038.95,0.0005178,120]
[320946609,1711720286294,-500.0,0.0005178,120]
[320946610,1711720286304,-5275.0,0.000518,120]
[320946611,1711720286313,-505.22711453,0.0005182,120]
[320946612,1711720286322,-500.0,0.0005182,120]
[320946613,1711720286332,-501.98776072,0.0005182,120]
[320946614,1711720286341,-501.36753004,0.0005182,120]
[320946615,1711720286350,-471.47303068,0.0005182,120]
[320946616,1711720286359,-507.21666702,0.0005182,120]
[320946617,1711720286369,-155.0,0.0005182,30]
[320946618,1711720286378,-523.0,0.000519,40]
[320946619,1711720286389,-400.0,0.000519,18]
[320946620,1711720286398,-500.0,0.00051943,120]
[320946621,1711720286417,-500.0,0.00051943,120]
[320946622,1711720286427,-500.0,0.00051943,120]
[320946623,1711720286437,-1137.41,0.00051943,120]
[320946624,1711720286447,-500.0,0.00051943,120]
[320946625,1711720286458,-500.0,0.00051943,120]
[320946626,1711720286467,-500.0,0.00051943,120]
[320946627,1711720286477,-500.0,0.00051943,120]
[320946628,1711720286487,-500.0,0.00051943,120]
[320946629,1711720286497,-500.0,0.00051943,120]
[320946630,1711720286506,-500.0,0.00051943,120]
[320946631,1711720286516,-500.0,0.00051943,120]
[320946632,1711720286525,-500.0,0.00051943,120]
[320946633,1711720286535,-500.0,0.00051943,120]
[320946634,1711720286544,-500.0,0.00051943,120]
[320946635,1711720286554,-500.0,0.00051943,120]
[320946636,1711720286563,-500.0,0.00051943,120]
[320946637,1711720286572,-500.0,0.00051943,120]
[320946638,1711720286583,-500.0,0.00051943,120]
[320946639,1711720286592,-500.0,0.00051943,120]
[320946640,1711720286602,-620.09320981,0.00051943,120]
[320946641,1711720286612,-500.0,0.00051943,120]
[320946642,1711720286622,-500.0,0.00051943,120]
[320946643,1711720286631,-263.51852701,0.00051943,120]
[320946644,1711720286640,-500.0,0.00051943,120]
[320946645,1711720286649,-500.0,0.00051943,120]
[320946646,1711720286659,-500.0,0.00051943,120]
[320946647,1711720286669,-500.0,0.00051943,120]
[320946648,1711720286679,-500.0,0.00051943,120]
[320946649,1711720286688,-500.0,0.00051943,2]
[320946650,1711720286698,-500.0,0.00051952,120]
[320946651,1711720286709,-500.0,0.00051952,120]
[320946652,1711720286718,-500.0,0.00051952,120]
[320946653,1711720286727,-500.0,0.00051952,120]
[320946654,1711720286737,-508.99,0.00051952,120]
[320946655,1711720286747,-500.0,0.00051952,120]
[320946656,1711720286756,-500.0,0.00051952,120]
[320946657,1711720286766,-500.0,0.00051952,120]
[320946658,1711720286776,-500.0,0.0005199,22]
[320946659,1711720286786,-500.0,0.0005199,22]
[320946660,1711720286796,-500.0,0.0005199,22]
[320946661,1711720286805,-500.0,0.0005199,22]
[320946662,1711720286815,-500.0,0.0005199,22]
[320946663,1711720286824,-500.0,0.0005199,32]
[320946664,1711720286834,-1408.51871603,0.00051997,10]
[320946665,1711720286844,-533.9131,0.00051998,7]
[320946666,1711720286854,-210.06,0.00052,7]
[320946667,1711720286863,-500.0,0.00052052,120]
[320946668,1711720286872,-500.0,0.00052052,120]
[320946669,1711720286882,-500.0,0.00052054,120]
[320946670,1711720286892,-500.0,0.00052054,120]
[320946671,1711720286902,-500.0,0.00052054,120]
[320946672,1711720286912,-500.0,0.00052054,120]
[320946673,1711720286922,-500.0,0.00052054,120]
[320946674,1711720286932,-500.0,0.00052054,120]
[320946675,1711720286941,-500.0,0.00052054,120]
[320946676,1711720286951,-500.0,0.00052054,120]
[320946677,1711720286961,-500.0,0.00052054,120]
[320946678,1711720286971,-500.0,0.00052054,120]
[320946679,1711720286980,-500.0,0.00052054,120]
[320946680,1711720286990,-500.0,0.00052054,120]
[320946681,1711720286999,-225.30179204,0.00052054,120]
[320946682,1711720287010,-500.0,0.00052054,120]
[320946683,1711720287020,-500.0,0.00052054,120]
[320946684,1711720287030,-500.0,0.00052054,120]
[320946685,1711720287039,-500.0,0.00052054,120]
[320946686,1711720287050,-150.0,0.00052054,120]
[320946687,1711720287059,-500.0,0.00052054,120]
[320946688,1711720287069,-867.0,0.00052054,120]
[320946689,1711720287080,-500.0,0.00052054,120]
[320946690,1711720287091,-500.0,0.00052054,120]
[320946691,1711720287100,-500.0,0.00052054,120]
[320946692,1711720287111,-500.0,0.00052054,120]
[320946693,1711720287121,-627.18,0.00052054,120]
[320946694,1711720287131,-500.0,0.00052054,120]
[320946695,1711720287141,-714.94,0.00052054,120]
[320946696,1711720287150,-500.0,0.00052054,120]
[320946697,1711720287160,-538.01,0.00052054,120]
[320946698,1711720287171,-1007.7,0.00052054,120]
[320946699,1711720287181,-686.37,0.00052054,120]
[320946700,1711720287191,-500.0,0.00052054,120]
[320946701,1711720287201,-982.95,0.00052054,120]
[320946702,1711720287211,-500.0,0.00052054,120]
[320946703,1711720287221,-500.0,0.00052054,120]
[320946704,1711720287230,-500.0,0.00052054,120]
[320946705,1711720287241,-500.0,0.00052054,120]
[320946706,1711720287251,-774.88,0.00052054,120]
[320946707,1711720287261,-500.0,0.00052054,120]
[320946708,1711720287271,-500.0,0.00052054,120]
[320946709,1711720287281,-679.79,0.00052054,120]
[320946710,1711720287291,-500.0,0.00052054,120]
[320946711,1711720287300,-500.0,0.00052054,120]
[320946712,1711720287310,-500.0,0.00052054,120]
[320946713,1711720287319,-500.0,0.00052054,120]
[320946714,1711720287328,-853.69,0.00052054,120]
[320946715,1711720287338,-500.0,0.00052054,120]
[320946716,1711720287347,-500.0,0.00052054,120]
[320946717,1711720287356,-896.8,0.00052054,120]
[320946718,1711720287366,-786.23,0.00052054,120]
[320946719,1711720287375,-522.53,0.00052054,120]
[320946720,1711720287386,-500.0,0.00052054,120]
[320946721,1711720287395,-500.0,0.00052054,120]
[320946722,1711720287405,-594.23,0.00052054,120]
[320946723,1711720287427,-9880.52,0.00052054,120]
[320946724,1711720287437,-1749.42,0.00052054,120]
[320946725,1711720287446,-500.0,0.00052054,120]
[320946726,1711720287456,-500.0,0.00052054,120]
[320946727,1711720287466,-573.33,0.00052054,120]
[320946728,1711720287475,-500.0,0.00052054,120]
[320946729,1711720287485,-512.31,0.00052054,120]
[320946730,1711720287496,-500.0,0.00052054,120]
[320946731,1711720287506,-500.0,0.00052054,120]
[320946732,1711720287643,-500.0,0.00052054,120]
[320946733,1711720287654,-500.0,0.00052054,120]
[320946734,1711720287666,-500.0,0.00052054,120]
[320946735,1711720287676,-545.68,0.00052054,120]
[320946736,1711720287686,-500.0,0.00052054,120]
[320946737,1711720287697,-500.0,0.00052054,120]
[320946738,1711720287707,-500.0,0.00052054,80]
[320946739,1711720287717,-1990.61,0.00052054,120]
[320946740,1711720287728,-500.0,0.00052054,120]
[320946741,1711720287738,-500.0,0.00052054,120]
[320946742,1711720287748,-500.0,0.00052054,120]
[320946743,1711720287757,-1229.22,0.00052054,120]
[320946744,1711720287767,-817.16,0.00052054,120]
[320946745,1711720287777,-500.0,0.00052054,120]
[320946746,1711720287787,-500.0,0.00052054,120]
[320946747,1711720287798,-500.0,0.00052054,120]
[320946748,1711720287808,-500.0,0.00052054,120]
[320946749,1711720287818,-553.19,0.00052054,120]
[320946750,1711720287827,-770.3,0.00052054,120]
[320946751,1711720287838,-4469.38,0.00052054,120]